bitfinex/quotes_ETHUSD_20240721
["timestamp","ask_amount","ask_price","bid_price","bid_amount"]
[1721585940490,2.89982,3448.5,3447.2,2.90089]
[1721585940808,0.57493232,3448.7,3447.0,2.90099]
[1721585941103,2.89963,3448.8,3447.1,3.0]
[1721585941302,2.89963,3448.8,3447.0,0.03031142]
[1721585941303,2.90014,3448.2,3447.0,2.901]
[1721585941474,0.57493232,3448.9,3447.1,3.0]
[1721585941475,0.57493232,3448.6,3447.1,3.0]
[1721585941667,0.07119414,3448.7,3446.8,2.3656]
[1721585941668,2.90036,3447.9,3446.8,5.3656]
[1721585941861,2.90024,3448.0,3446.8,5.3656]
[1721585942064,0.07251287,3448.1,3446.8,5.3656]
[1721585942300,2.90056,3447.7,3446.8,2.3656]
[1721585942587,2.90029,3448.0,3446.1,2.3656]
[1721585942713,2.90039,3447.9,3446.6,2.9014]
[1721585942909,2.90029,3448.0,3446.6,2.9014]
[1721585942910,2.9004,3447.8,3446.6,2.9014]
[1721585943156,2.90029,3448.0,3446.4,2.90149]
[1721585943359,2.90033,3447.9,3446.7,2.90132]
[1721585943525,2.90029,3448.0,3446.4,5.80298]
[1721585943744,2.90029,3448.0,3446.4,3.742004]
[1721585943931,0.64745411,3448.3,3446.5,5.90149]
[1721585944127,0.69367528,3448.2,3446.5,5.90149]
[1721585944347,2.90055,3447.7,3446.6,2.9014]
[1721585944560,3.47497232,3448.3,3447.0,2.90103]
[1721585944786,3.47497232,3448.3,3446.7,3.0]
[1721585944787,0.57493232,3448.7,3447.5,2.90064]
[1721585945053,2.01138551,3448.8,3447.2,2.3656]
[1721585945054,2.90008,3448.2,3447.2,2.3656]
[1721585945481,2.89991,3448.4,3447.2,2.3656]
[1721585945784,2.89973,3448.6,3447.3,0.826665]
[1721585945949,2.89973,3448.6,3447.3,3.0]
[1721585945950,2.90001,3448.3,3447.3,3.0]
[1721585946134,2.89973,3448.6,3447.2,5.3656]
[1721585946336,2.89963,3448.8,3447.5,2.90064]
[1721585946536,2.8998,3448.6,3447.2,8.26648]
[1721585946737,0.57493232,3449.1,3447.5,2.90063]
[1721585946946,0.57493232,3449.1,3447.3,3.826648]
[1721585946947,2.89927,3449.2,3447.6,3.03029759]
[1721585947147,2.89903,3449.5,3447.8,2.90031]
[1721585947445,3.3111511,3449.8,3447.9,5.9003]
[1721585947446,2.8993,3449.2,3447.9,5.9003]
[1721585947778,2.89931,3449.1,3447.9,5.9003]
[1721585948095,2.89931,3449.1,3448.0,2.90022]
[1721585948239,0.07120329,3449.0,3448.1,3.0]
[1721585948440,0.07120329,3449.0,3447.9,3.0]
[1721585948441,2.89963,3448.8,3447.9,3.0]
[1721585948686,2.89963,3448.8,3447.1,2.90094]
[1721585948687,2.90018,3448.1,3447.0,2.638]
[1721585948893,0.07249911,3448.7,3447.0,2.638]
[1721585948894,2.89994,3448.4,3447.2,2.0759912]
[1721585949245,2.89994,3448.4,3447.0,2.638]
[1721585949246,2.9004,3447.8,3447.0,2.638]
[1721585949648,2.90024,3448.0,3447.0,2.638]
[1721585949987,2.90015,3448.1,3447.0,2.638]
[1721585949988,2.9004,3447.8,3447.0,2.638]
[1721585950288,0.57493232,3448.6,3447.0,2.638]
[1721585950462,2.90031,3447.9,3446.5,2.638]
[1721585950797,2.4493,3448.5,3446.5,2.638]
[1721585950798,2.90066,3447.5,3446.5,2.638]
[1721585951286,2.90073,3447.4,3446.5,2.638]
[1721585951652,2.90049,3447.7,3446.5,2.638]
[1721585951653,2.90058,3447.6,3446.5,2.638]
[1721585952073,2.90066,3447.5,3446.6,3.0]
[1721585952277,2.90049,3447.7,3446.6,3.0]
[1721585952476,2.90075,3447.4,3446.6,3.0]
[1721585952789,2.4493,3448.5,3446.6,3.0]
[1721585952790,0.57493232,3448.7,3447.2,2.638]
[1721585952996,2.90018,3448.1,3447.2,2.638]
[1721585953291,0.57493232,3448.8,3447.2,2.638]
[1721585953493,0.69350784,3448.7,3447.2,2.638]
[1721585953652,0.57493232,3448.9,3447.3,5.90082]
[1721585953882,2.01138551,3449.2,3447.3,3.0]
[1721585953883,2.89997,3448.4,3447.3,3.0]
[1721585954374,2.89974,3448.6,3447.4,2.90065]
[1721585954681,3.3111511,3449.4,3447.8,2.90039]
[1721585954682,2.89948,3448.9,3447.8,2.90039]
[1721585955071,2.89939,3449.0,3447.8,2.90039]
[1721585955274,2.89932,3449.1,3447.8,2.90039]
[1721585955493,2.89932,3449.1,3447.9,2.9003]
[1721585955700,2.89907,3449.4,3448.0,2.93051193]
[1721585955897,3.52943441,3450.1,3448.1,3.03028536]
[1721585955898,2.89889,3449.6,3448.1,3.03028536]
[1721585956099,2.89898,3449.5,3448.2,5.53805]
[1721585956298,2.89869,3449.9,3448.3,5.89992]
[1721585956299,2.89896,3449.6,3448.3,5.89992]
[1721585956613,2.89896,3449.6,3448.4,2.89988]
[1721585956820,2.89897,3449.5,3448.5,3.0]
[1721585956984,2.89906,3449.4,3448.3,3.0]
[1721585957312,2.89877,3449.8,3448.4,2.89987]
[1721585957313,2.89889,3449.6,3448.4,2.89987]
[1721585957486,2.89889,3449.6,3448.5,3.0]
[1721585957812,2.89918,3449.3,3448.5,3.0]
[1721585958013,2.89918,3449.3,3448.1,3.0]
[1721585958415,2.89918,3449.3,3447.9,3.0]
[1721585958416,0.07249513,3449.2,3447.9,3.0]
[1721585958581,2.89918,3449.3,3447.9,3.0]
[1721585958790,2.89924,3449.2,3447.8,3.0]
[1721585958991,2.97120513,3449.9,3447.7,2.638]
[1721585958992,2.89967,3448.7,3447.7,2.638]
[1721585959192,3.47364232,3449.9,3447.7,2.638]
[1721585959193,2.89973,3448.6,3447.7,2.638]
[1721585959532,2.89989,3448.4,3447.2,5.5389]
[1721585959689,2.89961,3448.8,3447.2,2.638]
[1721585959888,2.89957,3448.8,3447.2,3.14586]
[1721585960125,2.89942,3449.0,3447.2,3.14586]
[1721585960431,2.89942,3449.0,3447.6,2.90055]
[1721585960638,0.07249981,3449.4,3447.6,2.90055]
[1721585960639,2.89947,3448.9,3447.6,2.90055]
[1721585961137,2.89957,3448.8,3447.7,3.0]
[1721585961515,0.07249981,3449.4,3446.9,2.4406]
[1721585961516,2.90017,3448.1,3446.9,5.34175]
[1721585961716,0.07251303,3448.8,3447.1,2.90091]
[1721585961918,2.3254,3448.9,3447.1,2.90091]
[1721585961919,2.89982,3448.5,3447.3,2.9008]
[1721585962248,2.3254,3448.9,3447.1,2.90094]
[1721585962394,2.3254,3448.9,3446.9,3.238575]
[1721585962395,2.89988,3448.5,3447.2,2.90089]
[1721585962591,2.89961,3448.8,3447.3,2.9008]
[1721585963040,2.89982,3448.5,3447.4,3.0]
[1721585963245,2.89935,3449.1,3447.9,2.90031]
[1721585963426,2.89956,3448.8,3448.0,3.0]
[1721585963609,2.89956,3448.8,3447.6,2.90056]
[1721585963610,2.89914,3449.3,3448.1,2.90013]
[1721585963807,2.3254,3449.7,3448.0,2.90022]
[1721585963808,2.89897,3449.5,3448.0,2.90022]
[1721585964023,2.89897,3449.5,3448.1,3.0]
[1721585964248,0.07248716,3450.0,3448.1,6.294422]
[1721585964414,0.07120961,3449.9,3448.1,8.34074]
[1721585964603,2.89905,3449.4,3448.2,2.90004]
[1721585964954,2.89848,3450.1,3448.3,3.0]
[1721585965100,2.89897,3449.5,3448.3,5.89996]
[1721585965300,2.89874,3449.8,3448.4,2.89988]
[1721585965661,2.89901,3449.5,3448.5,3.0]
[1721585965799,2.89923,3449.2,3448.0,5.90022]
[1721585966003,0.07248698,3449.7,3448.0,3.0]
[1721585966233,2.89923,3449.2,3448.0,3.0]
[1721585966540,2.89923,3449.2,3447.9,3.0]
[1721585966913,2.5618511,3450.5,3448.5,2.638]
[1721585966914,2.96984229,3449.9,3448.5,2.638]
[1721585967121,3.78376013,3450.9,3448.5,2.638]
[1721585967122,2.89847,3450.1,3448.6,3.0]
[1721585967436,2.97094351,3450.1,3448.6,5.89971]
[1721585967637,2.89887,3449.7,3448.6,3.0]
[1721585967806,0.07247351,3450.1,3448.6,3.0]
[1721585967807,2.89898,3449.5,3448.6,3.0]
[1721585968002,2.89898,3449.5,3448.0,5.34078]
[1721585968003,2.89922,3449.2,3448.5,3.0]
[1721585968239,2.89856,3450.0,3448.3,2.89997]
[1721585968402,2.89871,3449.9,3448.4,3.0]
[1721585968604,2.89897,3449.5,3448.4,3.0]
[1721585968851,2.89861,3450.0,3448.5,2.89981]
[1721585969054,2.89849,3450.1,3448.8,2.89952]
[1721585969258,2.89891,3449.6,3448.9,3.0]
[1721585969461,2.89891,3449.6,3448.6,3.0]
[1721585969958,2.89898,3449.5,3448.6,3.0]
[1721585970115,0.57493232,3450.7,3447.4,0.59008]
[1721585970116,0.07248378,3449.8,3448.4,3.0]
[1721585970480,2.89811,3450.6,3448.0,5.34081]
[1721585970481,4.59822,3450.4,3448.1,3.0]
[1721585970622,2.89927,3449.2,3448.1,3.0]
[1721585970828,2.89906,3449.4,3448.0,5.3408]
[1721585971135,2.89906,3449.4,3448.2,2.90006]
[1721585971335,2.89906,3449.4,3448.3,3.0]
[1721585971658,2.89879,3449.8,3448.6,2.638]
[1721585971855,2.8986,3450.0,3448.7,2.89956]
[1721585972063,3.0,3450.8,3448.0,3.27468]
[1721585972064,0.07247507,3450.2,3448.8,3.0]
[1721585972221,2.89832,3450.3,3449.3,2.638]
[1721585972423,0.07248327,3450.8,3449.3,2.638]
[1721585972424,2.8984,3450.2,3449.3,2.638]
[1721585972667,2.89796,3450.7,3449.3,5.53712]
[1721585973031,2.89772,3451.0,3449.4,2.4406]
[1721585973249,2.89738,3451.4,3449.8,2.638]
[1721585973423,2.89743,3451.4,3449.8,2.638]
[1721585973622,2.90033232,3452.1,3450.9,2.638]
[1721585973892,2.90033232,3452.1,3450.4,2.89817]
[1721585973893,2.3254,3452.1,3450.4,2.89817]
[1721585974202,0.07243759,3452.0,3450.5,3.0]
[1721585974484,0.57493232,3452.7,3451.6,2.638]
[1721585974485,2.89632,3452.7,3451.6,2.638]
[1721585974695,2.8964,3452.6,3451.6,2.638]
[1721585974842,2.8964,3452.6,3451.3,3.0]
[1721585974843,5.22162,3452.8,3451.3,3.0]
[1721585975043,5.22162,3452.8,3451.2,5.89753]
[1721585975238,0.57493232,3453.7,3451.6,2.638]
[1721585975239,2.89599,3453.1,3451.6,2.638]
[1721585975478,2.3254,3453.4,3451.7,3.0]
[1721585975688,2.8963,3452.7,3451.7,3.0]
[1721585975846,2.89609,3453.0,3451.7,3.0]
[1721585976051,5.22111,3453.4,3451.7,3.0]
[1721585976249,2.89613,3452.9,3451.7,3.0]
[1721585976758,2.89621,3452.8,3451.7,3.0]
[1721585976954,2.89587,3453.2,3451.8,2.89702]
[1721585977186,2.89587,3453.2,3451.9,3.0]
[1721585977495,2.89574,3453.4,3451.9,5.89694]
[1721585977673,0.07241959,3453.9,3451.9,5.89694]
[1721585977843,2.3254,3454.0,3450.9,2.765]
[1721585977844,0.07127718,3453.3,3450.9,2.765]
[1721585978044,2.89645,3452.5,3451.0,3.2765]
[1721585978472,2.89645,3452.5,3451.1,2.8976]
[1721585978648,2.89645,3452.5,3451.2,3.0]
[1721585978847,2.89645,3452.5,3451.2,5.89752]
[1721585979046,0.0712669,3452.4,3451.2,3.0]
[1721585979249,0.0712669,3452.4,3450.1,0.17399285]
[1721585979250,0.07243452,3452.3,3449.9,2.89857]
[1721585979499,0.07243452,3452.3,3448.7,3.50274695]
[1721585979500,0.07243452,3452.3,3449.6,2.89883]
[1721585979501,1.77243452,3452.3,3449.6,2.89883]
[1721585979675,2.89704,3451.8,3449.7,2.3174]
[1721585979887,2.89781,3450.9,3449.7,2.3174]
[1721585980113,2.89785,3450.9,3449.7,2.3174]
[1721585980429,0.0724658,3450.9,3449.7,2.3174]
[1721585980583,0.55,3450.8,3449.7,2.3174]
[1721585980779,0.55,3450.8,3449.1,5.66427]
[1721585980780,2.89814,3450.5,3449.1,5.66427]
[1721585981025,2.89799,3450.7,3449.1,5.0824]
[1721585981183,2.8978,3450.9,3449.4,2.89904]
[1721585981390,2.89789,3450.8,3449.5,2.89894]
[1721585981683,2.89834,3450.3,3449.1,2.3174]
[1721585982033,2.89869,3449.9,3448.4,2.89987]
[1721585982326,2.89924,3449.2,3447.7,2.3174]
[1721585982507,0.07248487,3449.8,3448.2,2.90003]
[1721585982508,2.97136499,3449.7,3448.2,2.90003]
[1721585982696,2.89887,3449.7,3448.4,2.89988]
[1721585982894,2.3604,3450.2,3447.9,2.765]
[1721585983082,0.55,3450.1,3448.3,2.89996]
[1721585983423,2.3604,3450.8,3449.0,2.3174]
[1721585983608,2.89808,3450.6,3449.0,5.3174]
[1721585983811,2.3604,3450.8,3449.5,2.89894]
[1721585983812,2.89792,3450.8,3449.5,2.89894]
[1721585984024,2.8972,3451.6,3449.0,5.3174]
[1721585984025,2.8974,3451.4,3449.7,2.89879]
[1721585984331,2.89691,3452.0,3449.8,3.0]
[1721585984332,2.89782,3450.9,3449.8,3.0]
[1721585984483,2.89782,3450.9,3449.7,2.89879]
[1721585984679,2.89782,3450.9,3449.8,3.0]
[1721585985297,2.3604,3452.1,3449.8,6.488529]
[1721585985512,2.3604,3452.1,3449.8,3.0]
[1721585985513,2.89796,3450.7,3449.8,3.0]
[1721585985729,2.89846,3450.1,3449.3,3.0]
[1721585985886,1.7,3451.7,3449.0,5.21678]
[1721585985887,2.89813,3450.5,3449.0,5.21678]
[1721585986225,3.0,3451.8,3449.7,2.89877]
[1721585986226,2.8978,3450.9,3449.7,2.89877]
[1721585986413,2.3604,3452.9,3450.3,2.765]
[1721585986726,1.14953441,3453.2,3450.3,2.765]
[1721585986727,2.3604,3453.7,3451.5,2.765]
[1721585986884,2.89621,3452.8,3451.7,2.3174]
[1721585987080,2.89657,3452.4,3451.7,2.3174]
[1721585987284,2.89632,3452.7,3451.7,2.3174]
[1721585987522,2.89596,3453.1,3451.7,5.2145]
[1721585987732,2.89596,3453.1,3451.8,3.0]
[1721585988036,2.3604,3453.7,3451.8,3.0]
[1721585988037,2.89615,3452.9,3451.8,3.0]
[1721585988219,2.89615,3452.9,3451.7,2.3174]
[1721585988387,2.89591,3453.2,3451.7,2.3174]
[1721585988588,2.89596,3453.1,3451.7,2.3174]
[1721585988793,0.07241871,3453.0,3451.7,2.3174]
[1721585988993,2.89596,3453.1,3451.7,2.3174]
[1721585989289,2.89605,3453.0,3451.7,2.3174]
[1721585989485,2.89605,3453.0,3451.7,5.3174]
[1721585989690,2.89614,3452.9,3451.7,5.3174]
[1721585990006,2.89599,3453.1,3451.8,3.0]
[1721585990188,2.89535,3453.9,3452.3,2.89659]
[1721585990388,0.1468901,3454.4,3452.4,3.0]
[1721585990389,2.96777745,3453.8,3452.4,3.0]
[1721585990593,0.07240745,3453.8,3452.4,3.0]
[1721585990816,2.89596,3453.1,3451.8,3.0]
[1721585991020,2.89596,3453.1,3451.7,2.3174]
[1721585991220,2.89596,3453.1,3451.7,3.12564]
[1721585991401,2.89522,3454.0,3451.8,3.0]
[1721585991603,2.89597,3453.1,3451.8,3.0]
[1721585991801,2.89604,3453.0,3451.8,3.0]
[1721585992215,0.07241913,3452.9,3451.8,3.0]
[1721585992404,2.89538,3453.8,3451.7,2.3174]
[1721585992405,2.89596,3453.1,3451.7,2.3174]
[1721585992746,2.89604,3453.0,3451.7,2.3174]
[1721585992925,0.55,3453.7,3451.7,5.84914]
[1721585993125,2.89607,3453.0,3451.7,5.84914]
[1721585993290,2.89555,3453.6,3451.9,2.89692]
[1721585993490,0.62241525,3453.5,3452.0,3.0]
[1721585993716,0.55,3453.4,3451.8,3.0]
[1721585993908,2.89606,3453.0,3451.8,3.0]
[1721585994615,3.44571,3453.4,3451.8,3.0]
[1721585994616,2.96856882,3452.9,3451.8,3.0]
[1721585994947,2.89587,3453.2,3451.8,3.0]
[1721585994948,2.89587,3453.2,3452.0,2.765]
[1721585995161,0.1468901,3454.4,3451.8,0.821453]
[1721585995162,2.89596,3453.1,3452.1,3.0]
[1721585995442,0.07241881,3453.0,3452.1,3.0]
[1721585995649,2.96807884,3453.5,3451.9,3.0]
[1721585995827,0.07241884,3453.5,3451.8,3.0]
[1721585996036,0.0724187,3453.4,3451.7,2.3174]
[1721585996405,2.89629,3452.7,3451.7,2.3174]
[1721585996599,0.0724214,3452.6,3451.7,2.3174]
[1721585996904,2.89562,3453.5,3450.8,2.89783]
[1721585996905,2.89662,3452.3,3451.0,5.21506]
[1721585997227,2.89685,3452.1,3451.0,2.3174]
[1721585997547,0.07243382,3452.0,3451.0,2.3174]
[1721585997765,0.55,3453.2,3451.0,2.3174]
[1721585997766,2.89672,3452.2,3451.0,2.3174]
[1721585997895,2.89679,3452.1,3451.0,2.3174]
[1721585998096,2.9692266,3452.1,3451.0,2.3174]
[1721585998325,0.0724366,3452.1,3451.0,2.3174]
[1721585998539,0.0724366,3452.2,3451.0,2.3174]
[1721585998737,2.89648,3452.5,3451.0,5.2151]
[1721585998967,3.44554,3453.6,3451.0,3.11541]
[1721585998968,2.89628,3452.7,3451.0,3.11541]
[1721585999244,2.8961,3453.0,3451.8,2.897]
[1721585999444,2.8958,3453.3,3451.9,2.89692]
[1721585999445,2.89588,3453.2,3451.9,2.89692]
[1721585999943,2.89588,3453.2,3451.0,6.01311]
[1721585999944,2.96811833,3453.4,3452.0,3.0]
[1721586000243,2.2714,3453.9,3452.0,3.19684]
[1721586000244,2.89587,3453.2,3452.0,3.19684]
[1721586000402,2.89568,3453.5,3452.1,5.89678]
[1721586000608,5.16671,3453.9,3452.1,5.89678]
[1721586000609,0.07241099,3453.8,3452.2,2.382]
[1721586000809,0.07240765,3453.7,3452.2,2.382]
[1721586001009,0.07240765,3453.7,3451.0,3.86256066]
[1721586001010,2.2714,3454.6,3451.5,2.382]
[1721586001011,1.7,3454.0,3451.5,2.382]
[1721586001219,2.96736107,3454.3,3451.5,2.382]
[1721586001425,2.89617,3452.9,3451.5,2.382]
[1721586001655,4.59511,3454.1,3451.5,5.382]
[1721586001656,2.8958,3453.3,3451.5,5.382]
[1721586001838,0.07242734,3454.0,3451.5,6.209942]
[1721586002007,2.89643,3452.6,3451.5,5.382]
[1721586002348,2.89623,3452.8,3451.5,2.382]
[1721586002349,2.89646,3452.5,3451.5,2.382]
[1721586002559,2.89654,3452.4,3451.5,2.382]
[1721586002764,2.89654,3452.4,3451.2,2.89753]
[1721586002765,0.07243152,3452.6,3450.8,5.382]
[1721586003068,2.89605,3453.0,3450.9,6.46606481]
[1721586003373,2.89605,3453.0,3451.7,2.89709]
[1721586003374,2.89604,3453.0,3451.7,2.89709]
[1721586003666,2.89563,3453.5,3452.0,2.89684]
[1721586003894,2.89563,3453.5,3451.8,3.0]
[1721586003895,0.07241324,3453.5,3451.8,3.0]
[1721586004026,0.07241324,3453.5,3452.1,3.0]
[1721586004027,2.89603,3453.0,3452.1,3.0]
[1721586004223,2.8962,3452.8,3451.8,3.0]
[1721586004451,2.89587,3453.2,3451.4,2.89731]
[1721586004452,2.89611,3452.9,3451.9,2.382]
[1721586004884,0.07242361,3453.2,3451.9,2.382]
[1721586005081,2.89,3454.5,3451.1,2.382]
[1721586005082,0.55,3453.1,3451.1,2.382]
[1721586005218,2.89619,3452.9,3451.1,2.382]
[1721586005422,3.44498,3454.3,3451.7,2.89711]
[1721586005423,2.89596,3453.1,3451.7,2.89711]
[1721586005776,2.89603,3453.0,3451.8,2.89702]
[1721586006066,2.96845631,3453.0,3451.5,2.89724]
[1721586006265,2.96845631,3453.0,3451.1,2.382]
[1721586006266,0.07241631,3453.0,3451.1,2.382]
[1721586006422,2.89551,3453.7,3451.1,2.382]
[1721586006423,2.89629,3452.7,3451.1,2.382]
[1721586006617,2.89712,3451.8,3450.6,2.89799]
[1721586006822,2.89712,3451.8,3450.7,2.89795]
[1721586007238,2.96924672,3452.1,3450.7,2.89795]
[1721586007539,1.0087412,3454.4,3451.2,2.89753]
[1721586007540,2.89637,3452.6,3451.2,2.89753]
[1721586007748,2.89637,3452.6,3451.3,2.89745]
[1721586008061,4.7,3454.0,3451.3,2.89745]
[1721586008062,2.89596,3453.1,3451.5,2.382]
[1721586008265,0.07241299,3453.8,3451.5,2.382]
[1721586008419,2.8957,3453.4,3452.1,2.89676]
[1721586008620,2.89578,3453.3,3452.2,5.8967]
[1721586008822,2.89545,3453.7,3452.2,3.0]
[1721586008823,0.07240773,3453.2,3452.2,3.0]
[1721586009079,2.89645,3452.5,3451.5,2.382]
[1721586009224,22.81602,3453.1,3451.5,3.209938]
[1721586009424,19.92,3453.1,3452.0,2.89687]
[1721586009649,2.89612,3452.9,3452.1,3.0]
[1721586009863,2.89623,3452.8,3451.6,5.89719]
[1721586010077,2.89623,3452.8,3451.7,2.89711]
[1721586010224,2.89623,3452.8,3451.8,3.0]
[1721586010420,0.07241866,3453.0,3451.8,3.40951895]
[1721586010666,0.07241866,3453.0,3451.5,3.209938]
[1721586010667,0.07241866,3453.0,3451.6,3.0]
[1721586010851,0.07241866,3453.0,3450.4,0.16828513]
[1721586010852,2.89687,3452.0,3450.8,2.382]
[1721586011053,2.89714,3451.7,3450.8,2.382]
[1721586011252,0.07126482,3452.2,3450.8,2.382]
[1721586011253,2.89712,3451.8,3450.8,2.382]
[1721586011569,19.92,3452.6,3450.9,2.89778]
[1721586011748,19.92,3452.6,3451.0,2.8977]
[1721586011923,2.89662,3452.3,3451.0,2.8977]
[1721586012128,19.92,3452.6,3450.8,2.382]
[1721586012381,19.92,3452.6,3450.8,2.41211756]
[1721586012667,19.92,3452.6,3451.7,2.89712]
[1721586012963,19.92,3453.1,3451.8,3.0]
[1721586013172,19.92,3453.1,3452.1,2.89678]
[1721586013373,19.92,3453.1,3451.9,2.89692]
[1721586013523,19.92,3453.1,3452.0,3.0]
[1721586014009,2.89629,3452.7,3451.8,3.0]
[1721586014319,2.89648,3452.5,3451.2,2.89745]
[1721586014468,2.89648,3452.5,3450.8,5.382]
[1721586014469,2.89678,3452.2,3450.8,5.382]
[1721586014669,2.89682,3452.1,3450.8,2.382]
[1721586014900,2.89664,3452.3,3450.9,2.89779]
[1721586015117,2.89687,3452.0,3450.8,2.382]
[1721586015276,2.89687,3452.0,3450.9,2.89779]
[1721586015483,0.07242791,3452.5,3451.0,5.8977]
[1721586015484,2.89681,3452.1,3451.0,5.8977]
[1721586015712,2.89687,3452.0,3451.0,3.0]
[1721586016025,2.89704,3451.8,3450.6,2.89803]
[1721586016166,2.89704,3451.8,3450.4,2.89819]
[1721586016167,2.89712,3451.7,3450.4,2.89819]
[1721586016363,2.89723,3451.6,3450.2,2.382]
[1721586016567,0.07244195,3451.7,3450.2,2.382]
[1721586016769,0.55,3451.6,3450.2,2.382]
[1721586017180,2.89755,3451.2,3450.2,2.382]
[1721586017570,2.89771,3451.0,3449.6,2.382]
[1721586017765,2.89754,3451.2,3450.1,2.89846]
[1721586018007,0.0724533,3451.5,3450.2,3.0]
[1721586018535,2.8973,3451.5,3450.2,3.0]
[1721586018808,19.92,3452.3,3450.7,5.147]
[1721586019032,19.92,3452.8,3450.8,3.0]
[1721586019331,2.89628,3452.7,3450.9,0.8147]
[1721586019693,2.89637,3452.6,3451.5,2.89728]
[1721586019900,2.89637,3452.6,3450.9,0.8147]
[1721586019901,2.89689,3452.0,3451.6,3.0]
[1721586020113,19.92,3453.2,3451.6,3.0]
[1721586020114,2.89661,3452.3,3451.6,3.0]
[1721586020344,2.89598,3453.1,3451.5,2.89728]
[1721586020345,0.07242843,3453.1,3451.5,2.89728]
[1721586020521,2.89629,3452.7,3451.6,5.89719]
[1721586020728,0.07242843,3453.1,3451.6,3.0]
[1721586021027,0.07242843,3453.1,3451.8,2.89703]
[1721586021028,2.89597,3453.1,3451.8,2.89703]
[1721586021195,19.92,3453.9,3452.2,2.89662]
[1721586021395,2.89511,3454.1,3452.0,5.1293]
[1721586021396,1.0087412,3454.4,3452.0,5.1293]
[1721586021397,19.92,3454.3,3452.0,5.1293]
[1721586021597,19.92,3454.3,3452.3,3.0]
[1721586021598,19.99239852,3454.3,3452.3,3.0]
[1721586021927,0.1468901,3454.4,3451.9,3.0]
[1721586021928,2.896,3453.1,3451.9,3.0]
[1721586022109,2.89556,3453.6,3451.4,2.3643]
[1721586022294,0.07127558,3453.5,3451.4,5.890469]
[1721586022497,2.89612,3452.9,3451.4,5.890469]
[1721586022689,0.07127558,3453.5,3451.4,5.890469]
[1721586022690,0.07241574,3452.8,3451.4,5.890469]
[1721586022949,2.89587,3453.2,3451.8,2.89701]
[1721586023259,2.89587,3453.2,3451.5,2.765]
[1721586023260,2.89629,3452.7,3451.9,3.0]
[1721586023393,2.89553,3453.6,3451.4,2.3643]
[1721586023394,0.07241821,3452.6,3451.4,2.3643]
[1721586023598,0.07241821,3452.6,3450.7,2.89792]
[1721586023599,2.89696,3451.9,3450.7,2.89792]
[1721586023834,2.89681,3452.1,3450.8,2.89785]
[1721586024044,2.89706,3451.8,3450.6,2.89802]
[1721586024233,2.89714,3451.7,3450.5,5.26241]
[1721586024546,2.89704,3451.8,3450.5,2.3643]
[1721586024719,3.44654,3452.4,3450.5,2.3643]
[1721586024720,2.89721,3451.6,3450.5,2.3643]
[1721586025052,2.89721,3451.6,3450.1,2.89844]
[1721586025053,0.07244654,3451.5,3450.1,2.89844]
[1721586025231,2.89702,3451.9,3449.8,2.3643]
[1721586025396,19.99244993,3452.3,3450.5,2.89812]
[1721586025734,2.89631,3452.7,3450.6,2.89801]
[1721586025735,0.55,3452.2,3450.6,2.89801]
[1721586025936,19.92,3452.7,3450.6,2.89801]
[1721586025937,2.89704,3451.8,3450.6,2.89801]
[1721586026356,0.0724462,3451.7,3450.0,2.8985]
[1721586026637,0.0724462,3451.7,3449.9,2.89863]
[1721586026844,0.0724462,3451.7,3449.8,2.3643]
[1721586026845,2.89755,3451.2,3449.8,2.3643]
[1721586027155,19.99245317,3451.6,3450.1,2.89846]
[1721586027434,19.92,3451.6,3450.4,2.8982]
[1721586027636,2.89729,3451.5,3450.2,2.89837]
[1721586027807,2.96983933,3451.4,3450.0,2.89853]
[1721586028014,2.89762,3451.1,3449.8,2.3643]
[1721586028202,0.07244933,3451.4,3449.8,2.3643]
[1721586028397,2.89783,3450.9,3449.8,2.3643]
[1721586028599,0.07246028,3450.8,3449.5,3.0]
[1721586028798,0.07246028,3450.8,3449.2,2.4297]
[1721586028799,2.89778,3451.0,3449.2,2.4297]
[1721586029039,2.8978,3450.9,3449.2,2.4297]
[1721586029250,3.44732,3451.5,3449.8,2.89865]
[1721586029397,3.44732,3451.5,3449.3,0.9100071]
[1721586029398,2.89738,3451.4,3450.3,2.89828]
[1721586029602,19.92,3451.6,3450.3,2.4297]
[1721586030034,19.92,3451.6,3450.6,2.89797]
[1721586030253,2.89621,3452.8,3451.8,2.89703]
[1721586030254,0.57493232,3452.8,3451.8,2.89703]
[1721586030454,0.57493232,3453.7,3451.9,3.0]
[1721586030625,0.57493232,3453.7,3451.8,2.4297]
[1721586030626,2.89587,3453.2,3451.8,2.4297]
[1721586030843,2.89614,3452.9,3451.8,2.4297]
[1721586031052,2.89614,3452.9,3451.8,5.4297]
[1721586031536,0.13185575,3452.8,3451.8,5.4297]
[1721586031743,0.13185575,3452.8,3451.1,2.4297]
[1721586031744,0.05943598,3452.8,3451.1,2.4297]
[1721586031904,2.89663,3452.3,3451.1,2.4297]
[1721586032240,2.89606,3453.0,3451.7,2.8971]
[1721586032406,3.01503232,3453.5,3451.8,3.0]
[1721586032407,0.07242081,3453.4,3451.8,3.0]
[1721586032605,0.0617882,3452.9,3451.8,3.0]
[1721586032944,2.8962,3452.8,3451.8,3.0]